Cogmind - Beta 11.1 @@@ ROGUE MODE // 2022.08.20 @ 18:06:04 Player: deadnoob Result: Destroyed by as-51641 with Assembled F-torch Performance ------------- Evolutions (0) 0 Regions Visited (3) 600 Robots Destroyed (18) 90 Value Destroyed (372) 372 Prototype IDs (1) 20 Alien Tech Used (0) 0 Bonus (300) 300 TOTAL SCORE: 1382 Bonus ------- Aligned with FarCom 300 Cogmind --------- Core Integrity 0/250 Matter 290/300 Energy 150/150 System Corruption 1% Temperature Cool (20) Movement Walking (190) Ox1 Location -10/Exiles Parts ------- > --- POWER (1) -------- Light Angular Momentum Engine > --- PROPULSION (2) --- Aluminum Leg Carbon-fiber Leg > --- UTILITY (2) ------ Large Storage Unit Signal Interpreter > --- WEAPON (2) ------- Medium Laser > --- INVENTORY (15) --- Ion Engine Light Ion Engine Aluminum Leg Aluminum Leg Flight Unit Flight Unit Flight Unit Flight Unit Heat Sink Huge Storage Unit High-capacity Matter Pod (200) Structural Scanner Signal Interpreter Targeting Computer Mining Laser Peak State ------------ > --- POWER ------------ Light Angular Momentum Engine > --- PROPULSION ------- Aluminum Leg Carbon-fiber Leg > --- UTILITY ---------- Large Storage Unit Signal Interpreter > --- WEAPON ----------- Medium Laser Guided Plasma Cannon > --- INVENTORY -------- Ion Engine Light Ion Engine Aluminum Leg Aluminum Leg Flight Unit Flight Unit Flight Unit Heat Sink Huge Storage Unit High-capacity Matter Pod Structural Scanner Signal Interpreter Targeting Computer Mining Laser [Rating: 21] Favorites ----------- Power Ion Engine Engine Ion Engine Propulsion Aluminum Leg Leg Aluminum Leg Utility Large Storage Unit Device Structural Scanner Storage Large Storage Unit Processor Signal Interpreter Weapon Medium Laser Energy Gun Medium Laser Energy Cannon Guided Plasma Cannon Ballistic Cannon Light Cannon Build | -11 -10 -10 -10 ------- Run | Scr Mat Min Exi Slots Evolved . | . . . . Power . | . . . . Propulsion . | . . . . Utility . | . . . . Weapon . | . . . . Parts Attached 21 | 6 11 3 1 Power 3 | 1 1 1 . Engine 3 | 1 1 1 . Core . | . . . . Reactor . | . . . . Propulsion 7 | 2 4 1 . Treads . | . . . . Leg 7 | 2 4 1 . Wheel . | . . . . Hover . | . . . . Flight . | . . . . Utility 6 | 1 5 . . Device 1 | . 1 . . Storage 4 | 1 3 . . Processor 1 | . 1 . . Hackware . | . . . . Protection . | . . . . Artifact . | . . . . Weapon 5 | 2 1 1 1 Energy Gun 3 | 2 1 . . Energy Cannon 1 | . . . 1 Ballistic Gun . | . . . . Ballistic Cannon 1 | . . 1 . Launcher . | . . . . Special Weapon . | . . . . Impact Weapon . | . . . . Slashing Weapon . | . . . . Piercing Weapon . | . . . . Special Melee Weapon . | . . . . Unidentified Prototypes 1 | . . . 1 Parts Lost 3 | . 2 1 . Power . | . . . . Propulsion 1 | . 1 . . Utility . | . . . . Weapon 2 | . 1 1 . Highest Loss Streak 1 | . 1 1 . To Critical Strikes . | . . . . Average Slot Usage (%) 90 | . 90 95 85 Engine 14 | . 14 14 14 Leg 27 | . 26 28 28 Device 5 | . 10 . . Storage 14 | . 14 14 14 Processor 6 | . . 14 14 Energy Gun 19 | . 24 14 14 Ballistic Cannon 2 | . . 9 . Naked Turns . | . . . . Heaviest Build 31 | 13 30 31 31 Greatest Support 25 | 20 20 25 25 Greatest Overweight (x) 2 | 1 2 1 1 Average Overweight (x) . | . . 1 1 Largest Inventory Capacity 25 | 8 25 15 15 Average Capacity 13 | 7 13 15 15 Most Carried 15 | 6 15 15 15 Average Carried 13 | 3 12 14 14 Final Capacity 15 | 8 15 15 15 Final Carried 15 | 6 15 15 15 Class Distribution -------------------- 100% | Mutant Dominant Class ---------------- Mutant | -10/Materials Mutant | -10/Mines Mutant | -10/Exiles Resources | -11 -10 -10 -10 ----------- Run | Scr Mat Min Exi Matter Collected 393 | 242 98 53 . Remotely . | . . . . Salvage Created 482 | . 435 47 . Parts 29 | . 25 4 . Haulers Intercepted . | . . . . Recyclers Shooed . | . . . . Parts Field Recycled . | . . . . Retrieved Matter . | . . . . Parts Self-Destructed . | . . . . Prevented . | . . . . Kills | -11 -10 -10 -10 ------- Run | Scr Mat Min Exi Combat Hostiles Destroyed 18 | . 15 3 . Guns 17 | . 14 3 . Classes Destroyed 2 | . 2 . . Swarmer 10 | . 7 3 . Grunt 8 | . 8 . . Best Kill Streak 3 | . 3 3 . Combat Bots Only 3 | . 3 3 . Max Kills in Single Turn 1 | . 1 1 . Gunslinging . | . . . . Exploded . | . . . . Melee . | . . . . Uniques/NPCs Destroyed . | . . . . Combat | -11 -10 -10 -10 -------- Run | Scr Mat Min Exi Damage Taken 898 | . 620 90 188 Core 255 | . 137 19 99 Absorbed by Shields . | . . . . Regen/Repaired (Parts) 145 | . 145 . . Core Remaining (%) 100 | 100 . . . Volleys Fired 49 | . 42 5 2 Largest 2 | . 2 2 1 Hottest 100 | . 100 85 50 Shots Fired 92 | . 83 7 2 Gun 90 | . 83 5 2 Cannon 2 | . . 2 . Launcher . | . . . . Special . | . . . . Kinetic 2 | . . 2 . Thermal 90 | . 83 5 2 Explosive . | . . . . Electromagnetic . | . . . . Robot Hit Streak 9 | . 9 2 2 Robot Miss Streak 6 | . 6 2 . Penetration Max . | . . . . Secondary Targets . | . . . . Shots Hit Robots 49 | . 45 3 1 Core Hits 26 | . 23 3 . Critical Kills . | . . . . Critical Parts Destroyed . | . . . . Critical Strikes 3 | . 2 1 . Burn 3 | . 2 1 . Melee Attacks . | . . . . Impact . | . . . . Slashing . | . . . . Piercing . | . . . . Sneak Attacks . | . . . . Combat Hostiles . | . . . . Follow-up Attacks . | . . . . Damage Inflicted 610 | . 572 38 . Guns 601 | . 563 38 . Cannons . | . . . . Explosions . | . . . . Melee . | . . . . Ramming 9 | . 9 . . Kinetic . | . . . . Thermal 601 | . 563 38 . Explosive . | . . . . Electromagnetic . | . . . . Impact . | . . . . Slashing . | . . . . Piercing . | . . . . Highest Corruption 1 | . 1 1 1 Average Corruption 1 | . 1 1 1 Corruption Purged . | . . . . Corruption Blocked . | . . . . Effects 7 | . 3 1 3 Message Errors 2 | . . . 2 Matter Fused 1 | . 1 . . Heat Flow Errors 1 | . . . 1 Energy Discharges 1 | . 1 . . Parts Rejected 1 | . 1 . . Data Loss (major) 1 | . . 1 . Overload Shots . | . . . . Overflow Damage . | . . . . Projectiles . | . . . . Explosions . | . . . . Melee . | . . . . Knockbacks . | . . . . Impact . | . . . . Kinetic . | . . . . Secondary . | . . . . Self-Inflicted Damage . | . . . . Shots . | . . . . Rammed . | . . . . Targets Rammed 3 | . 3 . . Kicked 3 | . 3 . . Crushed . | . . . . Highest Temperature 375 | . 375 78 156 Average Temperature 102 | . 111 42 52 Received Heat Transfer 276 | . 216 . 60 Effects 2 | . 2 . . Shutdowns 1 | . 1 . . Short Circuit 1 | . 1 . . Siege Activations . | . . . . Robots Corrupted . | . . . . Combat Hostiles . | . . . . Parts Fried . | . . . . Impact Corruptions . | . . . . Robots Melted 1 | . 1 . . Combat Hostiles 1 | . 1 . . Parts Melted 10 | . 9 1 . Heat Transferred 1951 | . 1766 185 . Parts Sabotaged . | . . . . Parts Stolen . | . . . . Parts Stripped . | . . . . Power Chain Reactions . | . . . . Missiles Intercepted . | . . . . Alert | -11 -10 -10 -10 ------- Run | Scr Mat Min Exi Peak Influence 255 | . 255 80 . Initial 40 | . . 40 . Average 120 | . 166 43 . Maximum Alert Level 1 | . 1 . . Low Security (%) 66 | 100 48 100 . Level 1 33 | . 51 . . Level 2 . | . . . . Level 3 . | . . . . Level 4 . | . . . . Level 5 . | . . . . High Security . | . . . . Max Security . | . . . . Squads Dispatched 5 | . 5 . . Investigation 2 | . 2 . . Extermination . | . . . . Reinforcement 3 | . 3 . . Assault . | . . . . Garrison . | . . . . Intercept . | . . . . Searches Triggered . | . . . . Construction Impeded . | . . . . Haulers Reinforced . | . . . . Active Scanning Responses . | . . . . Cargo Convoy Interrupts . | . . . . Stealth | -11 -10 -10 -10 --------- Run | Scr Mat Min Exi Distress Signals . | . . . . Communications Jammed . | . . . . Distress Signals . | . . . . Times Spotted 29 | . 22 3 4 Peak Tracking Total 10 | . 5 3 10 Tactical Retreats 2 | . 1 . 1 Traps | -11 -10 -10 -10 ------- Run | Scr Mat Min Exi Traps Triggered 2 | . 2 . . Indirectly . | . . . . Trap Hack Attempts . | . . . . Triggered . | . . . . Disarmed . | . . . . Reprogrammed . | . . . . Reused . | . . . . Traps Extracted . | . . . . Installed . | . . . . Triggered . | . . . . Machines | -11 -10 -10 -10 ---------- Run | Scr Mat Min Exi Machines Disabled . | . . . . Max in Single Turn . | . . . . Machines Sabotaged . | . . . . Garrisons Compromised . | . . . . Overloaded Fab Kills . | . . . . Hacking | -11 -10 -10 -10 --------- Run | Scr Mat Min Exi Machines Accessed 3 | . 3 . . Terminals 2 | . 2 . . Fabricators . | . . . . Repair Stations 1 | . 1 . . Recycling Units . | . . . . Scanalyzers . | . . . . Garrison Access . | . . . . Total Hacks 14 | . 14 . . Successful 8 | . 8 . . Failed 6 | . 6 . . Catastrophic 1 | . 1 . . Database Lockouts . | . . . . Manual 4 | . 3 . 1 Terminals 7 | . 7 . . Fabricators . | . . . . Repair Stations 7 | . 7 . . Recycling Units . | . . . . Scanalyzers . | . . . . Garrison Access . | . . . . Terminal Hacks 2 | . 2 . . Terminal Index 1 | . 1 . . Recall Reinforcements 1 | . 1 . . Fabricator Hacks . | . . . . Repair Station Hacks 6 | . 6 . . Scan Component 3 | . 3 . . Repair 3 | . 3 . . Recycling Unit Hacks . | . . . . Scanalyzer . | . . . . Garrison Access Hacks . | . . . . Unauthorized Hacks . | . . . . Terminals . | . . . . Fabricators . | . . . . Repair Stations . | . . . . Recycling Units . | . . . . Scanalyzers . | . . . . Garrison Access . | . . . . Data Cores Recovered . | . . . . Used . | . . . . Hacking Detections 3 | . 3 . . Full Trace Events 2 | . 2 . . Feedback Events . | . . . . Feedback Blocked . | . . . . Robot Schematics Acquired . | . . . . Robots Built . | . . . . Authchips . | . . . . Time . | . . . . Total Robot Build Rating . | . . . . Part Schematics Acquired . | . . . . Parts Built . | . . . . Authchips . | . . . . Time . | . . . . Total Part Build Rating . | . . . . Parts Repaired 3 | . 3 . . Time 78 | . 78 . . Parts Recycled . | . . . . Recycled Matter . | . . . . Retrieved Matter . | . . . . Retrieved Components . | . . . . Parts Scanalyzed . | . . . . Part Schematics Acquired . | . . . . Parts Damaged . | . . . . Bothacking | -11 -10 -10 -10 ------------ Run | Scr Mat Min Exi Used RIF Installer . | . . . . Robots Hacked . | . . . . Non-combat . | . . . . Combat . | . . . . Robot Hacks Applied . | . . . . Relay Couplers Released . | . . . . Fabnet Peak Effective % . | . . . . Robots Rewired . | . . . . Allies Hacked . | . . . . Hacks Repelled . | . . . . Allies | -11 -10 -10 -10 -------- Run | Scr Mat Min Exi Total Allies 1 | . . 1 . Largest Group 1 | . . 1 . Highest-Rated Group 31 | . . 31 . Highest-Rated Ally 31 | . . 31 . Total Orders . | . . . . Ally Attacks 4 | . . 4 . Total Damage . | . . . . Kills . | . . . . Allies Corrupted . | . . . . Allies Melted . | . . . . Intel | -11 -10 -10 -10 ------- Run | Scr Mat Min Exi Robot Analysis Total . | . . . . Derelict Logs Recovered 1 | . . 1 . Drone Launches . | . . . . Drone Recoveries . | . . . . Exploration | -11 -10 -10 -10 ------------- Run | Scr Mat Min Exi Turns Passed 1803 | 74 924 432 373 Spaces Moved 838 | 52 389 205 192 Core 6 | 6 . . . Treads . | . . . . Legs 832 | 46 389 205 192 Wheels . | . . . . Hover . | . . . . Flight . | . . . . Fastest Speed 50 | 50 120 190 190 Average Speed 177 | 114 173 190 190 Slowest Speed 260 | 120 260 190 190 Overloaded Moves . | . . . . Propulsion Burnouts . | . . . . Robots Hopped . | . . . . Cave-ins Triggered . | . . . . Exploration Rate (%) 41 | 4 58 46 59 Regions Visited 3 Branch Regions 2 Pre-discovered Areas . | . . . . Known Exits Taken 2 | . 1 1 . Unknown Exits Taken 1 | 1 . . . Scrap Searched . | . . . . Spaces Dug . | . . . . Terrain Destroyed . | . . . . Melee . | . . . . Projectile . | . . . . AOE . | . . . . Terrain Rammed . | . . . . Walls Destroyed . | . . . . Machines Disabled . | . . . . Actions | -11 -10 -10 -10 --------- Run | Scr Mat Min Exi Total 1070 | 63 566 242 199 Wait 102 | . 81 21 . Move 835 | 51 388 204 192 Hop . | . . . . Pick Up 38 | 6 26 4 2 Fast Attach 9 | 6 2 1 . Attach 7 | . 6 . 1 Detach 1 | . 1 . . Swap 5 | . 3 2 . Drop 21 | . 14 5 2 Fire 49 | . 42 5 2 Melee . | . . . . Ram . | . . . . Kick 3 | . 3 . . Crush . | . . . . Escape Stasis . | . . . . Rewire . | . . . . Trap . | . . . . Miscellaneous . | . . . . Route ------- -11/Scrapyard -10/Materials -10/Mines -10/Exiles (discovered 2 exits: Min x2) History --------- Turn | Location | Event 7 | -11/Scrapyard | Discovered new exit (range 16) 75 | -11/Scrapyard | Entered Materials 349 | -10/Materials | Build established: Mutant 621 | -10/Materials | Discovered new exit (range 14) 683 | -10/Materials | Repaired Ion Engine 716 | -10/Materials | Repaired Aluminum Leg 749 | -10/Materials | Repaired Aluminum Leg? 761 | -10/Materials | Core integrity fell below 50% 999 | -10/Materials | Identified exit to Mines 999 | -10/Materials | Entered Mines 1263 | -10/Mines | Received a Mining Laser from a helpful Derelict 1421 | -10/Mines | Deemed a non-threat by the Exiles lab entrance 1423 | -10/Mines | Discovered new exit (range 5) 1429 | -10/Mines | Identified exit to Exiles 1431 | -10/Mines | Entered Exiles 1432 | -10/Exiles | Identified exit to Mines 1475 | -10/Exiles | Met 8R-AWN 1511 | -10/Exiles | Met EX-HEX 1563 | -10/Exiles | Met EX-BIN 1583 | -10/Exiles | Aligned with FarCom system 1585 | -10/Exiles | Given EX-Vault access code 1631 | -10/Exiles | Opened EX-Vault 1645 | -10/Exiles | Found Prototype Energy Cannon 1646 | -10/Exiles | Identified Gui. Plasma Cannon 1690 | -10/Exiles | Warned to stay clear of 0b10 Research branches 1743 | -10/Exiles | Met EX-DEC 1771 | -10/Exiles | Attacked by the Exiles 1797 | -10/Exiles | Core integrity fell below 20% 1804 | -10/Exiles | Destroyed by as-51641 with Assembled F-torch Last Messages --------------- 01649_ Acquired Flight Unit. 01676_ XLUQUKWIH#F EX-BIN: Oh yeah, I'd suggest you stay away from the 0b10 Research branches, since the FarCom signals could be picked up there, but you're welcome to try if you really want to. And if we have to leave here due to unforeseen circumstances, don't worry the FarCom system will continue to maintain contact via our distributed network. EX-BIN: And don't even think about spreading that code around. We're gonna change it right after you leave. Most certainly not to something like 1234 which I did last time as a little joke and some thief managed to sneak in here and steal a few of HEX's prototypes. 01728_ ZZVRFOA|TY> WP/Q0M# 55CR 89IOL4ADJ 2N EX-DEC: Ah I see we have a visitor. One wrong move in here and I'll invert your atomic chain! 01745_ EX-DEC: "Oops, I hope HEX didn't hear that..." 01771_ EXILES: Hostile robot within lab perimeter. Defensive protocols time, folks! 01773_ EX-DEC deploys DAS Turret. 01791_ Machine disabled. Map ----- +----------------------------------------------------+ | ?????????????????????????????????????????????????? | | ?????????????????????????????????????????????????? | | ?????????????????????????????????????????????????? | | ?????????????????????????????????????????????????? | | ?????????????????????????????????????????????????? | | ?????????????????????????????????????????????????? | | ?????????????????????????????????????????????????? | | ?????????????????????????????????????????????????? | | ?????????????????????????????????????????????????? | | ?????????????????????????????????????????????????? | | ???????????>?????????????????????????????????????? | | ?????????????????????????????????????????????????? | | ?????????????????????????????????????????????????? | | ?????????????????????????????????????????????????? | | ?????????????????????????????????????????????????? | | ?????????????????????????????????????????????????? | | ????????????? ??????????????#######?????????????? | | ????????????? ######???????#!!! "#?????????????? | | ???????????? #""???????# "#?????????????? | | ???????????? ??????# "#?????????????? | | ?????????????" #????## ""#?????????????? | | ?????????????" #####" ""#?????????????? | | ??????????????# ##" ""#????????????? | | ???????????????# #" #??????????????? | | ??????????????????# #??????????????" | | ??????????????????#### @ a ##?????????????" | | ?????????????????????### a "#????????????? | | ??????????????????????#" ###???????????" | | ????????????????????"""" ##??????????# | | ?????????????????? "### ######???### | | ????????????????! "#?## ""#####X# | | ????????????????! ##??#" | | ???????????????? !""""""###???#"# | | ?????????????????#######??????#### | | ?????????????????????????????????### | | ???????????????????????????????????### | | ?????????????????????????????????????## | | ??????????????????????????????????????## | | ???????????????????????????????????????##" | | ????????????????????????????????????????#""" | | ????????????????????????????????????????#" | | ???????????????????????????????????????#"" | | ???????????????????????????????????????#""" | | ???????????????????????????????????????""" | | ???????????????????????????????????????""" | | ????????????????????????????????????????" | | ???????????????????????????????????????""" | | ???????????????????????????????????????"" | | ????????????????????????????????????????"" | | ?????????????????????????????????????????""" | +----------------------------------------------------+ Best States ------------- Heat Dissipation 25 Energy Generation 18 Energy Capacity 250 Matter Stores 300 Matter Capacity 300 Sight Range 16 Terrain Scan Density 10 Evasion (%) 55 Item Schematics ----------------- None Robot Schematics ------------------ None Fabricated ------------ Nothing Alien Tech Used ----------------- None Achievements -------------- None Challenges ------------ None Game ------ Seed SmallGreatRail Manual? 0 Play Time 00:14:52 Cumulative 33.7 hours Start 2022.08.20 @ 17:52:53 End 2022.08.20 @ 18:06:04 Sessions 1 Manual Loads 0 Difficulty Rogue Special Mode None Game No. 61 Rogue 61 Adventurer 0 Explorer 0 Win Type - Total 0 Types 0/0/0/0/0/0/0/0/0 Lore% 37 Gallery% 39 Achievement% 34 Wizard Run 0 Options --------- ASCII 0 Keyboard 0 Movement Numpad Keybinds 0 Fullscreen 1 Font 18/SmallcapsGlow Map View 76x50 Tactical HUD 1 Map Filters NONE Filters NONE Steam 1 RUN: 7c185134-d1af-415e-9cf6-09f8cdf62b32